[Event "Live Chess"]
[Site "Chess.com"]
[Date "2024.06.02"]
[Round "-"]
[White "Dashman93"]
[Black "StoreySniper"]
[Result "1-0"]
[WhiteElo "2132"]
[BlackElo "2475"]
[TimeControl "300"]
[EndTime "8:27:51 PDT"]
[Termination "Dashman93 won on time"]

1. d4 {[%clk 0:04:57.1]} 1... g6 {[%clk 0:04:59.5]} 2. g3 {[%clk 0:04:54]} 2...
Bg7 {[%clk 0:04:59.1]} 3. Bg2 {[%clk 0:04:53.4]} 3... c5 {[%clk 0:04:58.7]} 4.
Nf3 {[%clk 0:04:52.8]} 4... cxd4 {[%clk 0:04:57.4]} 5. Nxd4 {[%clk 0:04:51.8]}
5... Nc6 {[%clk 0:04:57.1]} 6. Nxc6 {[%clk 0:04:50.9]} 6... bxc6 {[%clk
0:04:56.1]} 7. O-O {[%clk 0:04:50.3]} 7... Qb6 {[%clk 0:04:55.4]} 8. Nd2 {[%clk
0:04:46.6]} 8... Ba6 {[%clk 0:04:53.6]} 9. c4 {[%clk 0:04:42.7]} 9... h5 {[%clk
0:04:50.6]} 10. h4 {[%clk 0:04:41.3]} 10... Nh6 {[%clk 0:04:48.8]} 11. Rb1
{[%clk 0:04:39.9]} 11... Rb8 {[%clk 0:04:43.3]} 12. b3 {[%clk 0:04:38.9]} 12...
Ng4 {[%clk 0:04:36.7]} 13. Ne4 {[%clk 0:04:23.9]} 13... Bxc4 {[%clk 0:04:23.1]}
14. Bf4 {[%clk 0:04:22]} 14... Bd5 {[%clk 0:04:12.4]} 15. Bxb8 {[%clk 0:04:18]}
15... Qxb8 {[%clk 0:04:12.3]} 16. Nc5 {[%clk 0:04:09.1]} 16... Nf6 {[%clk
0:03:43.5]} 17. e4 {[%clk 0:04:01.8]} 17... Be6 {[%clk 0:03:42.6]} 18. Nxe6
{[%clk 0:03:59.8]} 18... fxe6 {[%clk 0:03:41.8]} 19. Qc2 {[%clk 0:03:49.1]}
19... Ng4 {[%clk 0:03:28]} 20. Rbe1 {[%clk 0:03:39.2]} 20... Bd4 {[%clk
0:03:23]} 21. e5 {[%clk 0:03:30.9]} 21... Nxe5 {[%clk 0:02:42.4]} 22. Re4 {[%clk
0:03:19]} 22... c5 {[%clk 0:02:30.6]} 23. Kh1 {[%clk 0:03:05.5]} 23... Kd8
{[%clk 0:02:14.6]} 24. Rd1 {[%clk 0:02:51.6]} 24... Rf8 {[%clk 0:02:10.3]} 25.
f4 {[%clk 0:02:38.3]} 25... Ng4 {[%clk 0:02:09.2]} 26. Rexd4 {[%clk 0:02:36]}
26... cxd4 {[%clk 0:02:03.1]} 27. Rxd4 {[%clk 0:02:35.9]} 27... Rf5 {[%clk
0:01:32.1]} 28. Be4 {[%clk 0:02:19.2]} 28... Qb6 {[%clk 0:01:21.6]} 29. Rc4
{[%clk 0:02:00.3]} 29... Ke8 {[%clk 0:00:57.3]} 30. Bxf5 {[%clk 0:01:58.8]}
30... gxf5 {[%clk 0:00:53.6]} 31. Qd2 {[%clk 0:01:49.6]} 31... Kf7 {[%clk
0:00:37.3]} 32. Rd4 {[%clk 0:01:41.6]} 32... d5 {[%clk 0:00:30.6]} 33. Kg2
{[%clk 0:01:37.2]} 33... Nf6 {[%clk 0:00:27.2]} 34. Rd3 {[%clk 0:01:32.8]} 34...
Ne4 {[%clk 0:00:24.9]} 35. Qe3 {[%clk 0:01:32.3]} 35... Qc6 {[%clk 0:00:20.1]}
36. Rd2 {[%clk 0:01:26.9]} 36... Nxd2 {[%clk 0:00:16.2]} 37. Qxd2 {[%clk
0:01:26.8]} 37... d4+ {[%clk 0:00:15.4]} 38. Kf2 {[%clk 0:01:24.2]} 38... Qe4
{[%clk 0:00:14.8]} 39. Qe2 {[%clk 0:01:21.1]} 39... Qd5 {[%clk 0:00:13.2]} 40.
Qxh5+ {[%clk 0:01:20.5]} 40... Kf8 {[%clk 0:00:11.7]} 41. Qh8+ {[%clk
0:01:19.6]} 41... Kf7 {[%clk 0:00:10.3]} 42. Qh7+ {[%clk 0:01:18.9]} 42... Kf8
{[%clk 0:00:09.7]} 43. h5 {[%clk 0:01:13.9]} 43... Ke8 {[%clk 0:00:08.8]} 44.
Qg6+ {[%clk 0:01:12.7]} 44... Kd7 {[%clk 0:00:08]} 45. h6 {[%clk 0:01:07.7]}
45... d3 {[%clk 0:00:07.9]} 46. Ke1 {[%clk 0:01:01.9]} 46... Qd4 {[%clk
0:00:06.7]} 47. Qh5 {[%clk 0:01:00.4]} 47... Qe3+ {[%clk 0:00:05.8]} 48. Kd1
{[%clk 0:00:59.8]} 48... d2 {[%clk 0:00:04.5]} 49. Qe2 {[%clk 0:00:58.7]} 49...
Qxg3 {[%clk 0:00:03.8]} 50. Kxd2 {[%clk 0:00:57.7]} 50... Ke8 {[%clk 0:00:03.7]}
51. h7 {[%clk 0:00:55.9]} 51... Qxf4+ {[%clk 0:00:03.1]} 52. Qe3 {[%clk
0:00:55.6]} 52... Qh2+ {[%clk 0:00:02.5]} 53. Kc3 {[%clk 0:00:54.5]} 53... Qxh7
{[%clk 0:00:02.4]} 54. Qxa7 {[%clk 0:00:53.8]} 54... Kf7 {[%clk 0:00:02.1]} 55.
Qg1 {[%clk 0:00:52.5]} 55... Qg7+ {[%clk 0:00:02]} 56. Qxg7+ {[%clk 0:00:51.6]}
56... Kxg7 {[%clk 0:00:01]} 57. Kd4 {[%clk 0:00:51.5]} 57... f4 {[%clk
0:00:00.8]} 58. Ke4 {[%clk 0:00:50.8]} 58... Kf6 {[%clk 0:00:00.2]} 59. a4
{[%clk 0:00:50]} 1-0

[Event "Live Chess"]
[Site "Chess.com"]
[Date "2024.06.02"]
[Round "-"]
[White "blunderabit"]
[Black "MagnersCarlsberg2870"]
[Result "1-0"]
[WhiteElo "1777"]
[BlackElo "1758"]
[TimeControl "300"]
[EndTime "8:28:14 PDT"]
[Termination "blunderabit won by resignation"]

1. e4 {[%clk 0:04:56.3]} 1... e5 {[%clk 0:04:58.4]} 2. Bc4 {[%clk 0:04:50.6]}
2... Nc6 {[%clk 0:04:56]} 3. d3 {[%clk 0:04:46.2]} 3... Bc5 {[%clk 0:04:53.2]}
4. Qf3 {[%clk 0:04:34.2]} 4... Nf6 {[%clk 0:04:52]} 5. Ne2 {[%clk 0:04:31.3]}
5... d6 {[%clk 0:04:50.7]} 6. h3 {[%clk 0:04:29.3]} 6... Nd4 {[%clk 0:04:42.9]}
7. Nxd4 {[%clk 0:04:26.6]} 7... Bxd4 {[%clk 0:04:41.7]} 8. c3 {[%clk 0:04:11.7]}
8... Bb6 {[%clk 0:04:40]} 9. a4 {[%clk 0:04:09.4]} 9... a5 {[%clk 0:04:37.8]}
10. Bg5 {[%clk 0:03:59.9]} 10... Be6 {[%clk 0:04:33.5]} 11. Na3 {[%clk 0:03:51]}
11... Bxc4 {[%clk 0:04:30.7]} 12. Nxc4 {[%clk 0:03:48.7]} 12... h6 {[%clk
0:04:28.7]} 13. Bxf6 {[%clk 0:03:46.1]} 13... gxf6 {[%clk 0:04:27.6]} 14. Nxb6
{[%clk 0:03:20.3]} 14... cxb6 {[%clk 0:04:25.9]} 15. Ke2 {[%clk 0:03:17.6]}
15... Rg8 {[%clk 0:04:24.1]} 16. g4 {[%clk 0:03:14.7]} 16... Rc8 {[%clk
0:04:16.4]} 17. Qe3 {[%clk 0:03:04.6]} 17... d5 {[%clk 0:04:12.2]} 18. Qxh6
{[%clk 0:02:56.9]} 18... dxe4 {[%clk 0:04:10.9]} 19. dxe4 {[%clk 0:02:55.6]}
19... Rc4 {[%clk 0:04:08]} 20. Qe3 {[%clk 0:02:48.6]} 20... Qc7 {[%clk
0:04:04.6]} 21. Rhd1 {[%clk 0:02:35.2]} 21... Qc6 {[%clk 0:04:02.9]} 22. f3
{[%clk 0:02:23.4]} 22... Rxa4 {[%clk 0:03:59.7]} 23. Rxa4 {[%clk 0:02:15.5]}
23... Qxa4 {[%clk 0:03:58.7]} 24. Qxb6 {[%clk 0:02:14.2]} 24... Qc4+ {[%clk
0:03:57.8]} 25. Kf2 {[%clk 0:02:07.8]} 25... Kf8 {[%clk 0:03:45.2]} 26. Rd8+
{[%clk 0:01:57]} 26... Kg7 {[%clk 0:03:43.9]} 27. Rxg8+ {[%clk 0:01:55.4]} 27...
Kxg8 {[%clk 0:03:43]} 28. Qxf6 {[%clk 0:01:45.9]} 28... Qc5+ {[%clk 0:03:37.5]}
29. Kg3 {[%clk 0:01:43]} 29... Qg1+ {[%clk 0:03:35.6]} 30. Kh4 {[%clk
0:01:40.7]} 30... Qf2+ {[%clk 0:03:27.3]} 31. Kh5 {[%clk 0:01:36.1]} 31... Qxb2
{[%clk 0:03:21.5]} 32. Kh6 {[%clk 0:01:24.7]} 32... Qd2+ {[%clk 0:03:18.5]} 33.
g5 {[%clk 0:01:22.8]} 33... Kf8 {[%clk 0:03:16]} 34. Qh8+ {[%clk 0:01:18]} 34...
Ke7 {[%clk 0:03:14.6]} 35. Qxe5+ {[%clk 0:01:17]} 35... Kd7 {[%clk 0:03:11.6]}
36. Qxa5 {[%clk 0:01:15]} 36... Qd6+ {[%clk 0:03:06.8]} 37. Kh5 {[%clk
0:01:03.2]} 37... Qg6+ {[%clk 0:03:05.4]} 38. Kh4 {[%clk 0:00:56.9]} 38... b6
{[%clk 0:03:04.3]} 39. Qf5+ {[%clk 0:00:53.6]} 39... Qxf5 {[%clk 0:03:01.2]} 40.
exf5 {[%clk 0:00:51.7]} 40... Ke7 {[%clk 0:02:59]} 41. Kh5 {[%clk 0:00:48.8]}
41... Kf8 {[%clk 0:02:56.5]} 42. g6 {[%clk 0:00:44]} 42... fxg6+ {[%clk
0:02:55]} 43. Kxg6 {[%clk 0:00:42.7]} 43... b5 {[%clk 0:02:52.7]} 44. h4 {[%clk
0:00:39.6]} 44... Kg8 {[%clk 0:02:51.9]} 45. Kf6 {[%clk 0:00:32.2]} 45... Kf8
{[%clk 0:02:50.6]} 46. Ke6 {[%clk 0:00:30.4]} 46... Ke8 {[%clk 0:02:49.6]} 47.
Kd5 {[%clk 0:00:29]} 47... Kf7 {[%clk 0:02:48.3]} 48. Kc5 {[%clk 0:00:27.8]}
48... Kf6 {[%clk 0:02:47.6]} 49. Kxb5 {[%clk 0:00:26.7]} 49... Kxf5 {[%clk
0:02:46.9]} 50. c4 {[%clk 0:00:25.9]} 50... Ke6 {[%clk 0:02:45]} 51. h5 {[%clk
0:00:23.5]} 1-0

[Event "Live Chess"]
[Site "Chess.com"]
[Date "2024.06.02"]
[Round "-"]
[White "booktrunk"]
[Black "Eva3337"]
[Result "1-0"]
[WhiteElo "1492"]
[BlackElo "1165"]
[TimeControl "300"]
[EndTime "8:28:21 PDT"]
[Termination "booktrunk won by resignation"]

1. d4 {[%clk 0:04:56.2]} 1... d5 {[%clk 0:04:58.2]} 2. Nc3 {[%clk 0:04:50.5]}
2... e6 {[%clk 0:04:56.9]} 3. Bf4 {[%clk 0:04:49.7]} 3... c5 {[%clk 0:04:55.5]}
4. dxc5 {[%clk 0:04:47.4]} 4... Bxc5 {[%clk 0:04:54.2]} 5. e3 {[%clk 0:04:45.8]}
5... Nc6 {[%clk 0:04:49.3]} 6. Nb5 {[%clk 0:04:40.3]} 6... e5 {[%clk 0:04:39.4]}
7. Bg3 {[%clk 0:04:38.7]} 7... a6 {[%clk 0:04:37.9]} 8. Nc3 {[%clk 0:04:36.2]}
8... Nf6 {[%clk 0:04:33.8]} 9. Nf3 {[%clk 0:04:31.4]} 9... Bd6 {[%clk
0:04:23.5]} 10. Be2 {[%clk 0:04:20.7]} 10... O-O {[%clk 0:04:21.8]} 11. O-O
{[%clk 0:04:18.7]} 11... e4 {[%clk 0:04:01.7]} 12. Bxd6 {[%clk 0:04:15]} 12...
Qxd6 {[%clk 0:04:00.1]} 13. Nd4 {[%clk 0:04:12.7]} 13... Nxd4 {[%clk 0:03:57.4]}
14. Qxd4 {[%clk 0:04:11.6]} 14... Bg4 {[%clk 0:03:45.8]} 15. Bxg4 {[%clk
0:04:08.4]} 15... Nxg4 {[%clk 0:03:44]} 16. g3 {[%clk 0:04:05.7]} 16... Rfd8
{[%clk 0:03:31.9]} 17. Rad1 {[%clk 0:03:57.9]} 17... Nf6 {[%clk 0:03:28]} 18. a3
{[%clk 0:03:52.2]} 18... Rac8 {[%clk 0:03:22.1]} 19. Qd2 {[%clk 0:03:49.7]}
19... Rc7 {[%clk 0:02:58.7]} 20. Ne2 {[%clk 0:03:47.4]} 20... Rdc8 {[%clk
0:02:41.1]} 21. Rc1 {[%clk 0:03:39.6]} 21... Qe6 {[%clk 0:02:32.2]} 22. Nf4
{[%clk 0:03:36.7]} 22... Qg4 {[%clk 0:02:27.2]} 23. h3 {[%clk 0:03:33]} 23...
Qf5 {[%clk 0:02:20.7]} 24. c3 {[%clk 0:03:30.1]} 24... g5 {[%clk 0:02:17.3]} 25.
g4 {[%clk 0:03:25.2]} 25... Qe5 {[%clk 0:01:47.8]} 26. Ng2 {[%clk 0:03:20]}
26... Kg7 {[%clk 0:01:40.9]} 27. Rfd1 {[%clk 0:03:17.9]} 27... Rd7 {[%clk
0:01:31.6]} 28. Qd4 {[%clk 0:03:13.4]} 28... Qd6 {[%clk 0:01:25.5]} 29. f4
{[%clk 0:03:07.4]} 29... h6 {[%clk 0:01:18.7]} 30. fxg5 {[%clk 0:03:00.8]} 30...
hxg5 {[%clk 0:01:17.4]} 31. Rf1 {[%clk 0:02:58.2]} 31... Kg6 {[%clk 0:01:14]}
32. Qd2 {[%clk 0:02:46.5]} 32... Qg3 {[%clk 0:01:09.7]} 33. Qf2 {[%clk 0:02:38]}
33... Qd6 {[%clk 0:01:07.2]} 34. Kh1 {[%clk 0:02:33.9]} 34... Rh8 {[%clk
0:01:00]} 35. h4 {[%clk 0:02:32.2]} 35... Nxg4 {[%clk 0:00:46.7]} 36. Qf5+
{[%clk 0:02:30.8]} 36... Kg7 {[%clk 0:00:27.5]} 37. Qxg4 {[%clk 0:02:29.2]}
37... Kf8 {[%clk 0:00:19.5]} 38. Qxg5 {[%clk 0:02:24.7]} 38... Rg8 {[%clk
0:00:17.7]} 39. Qf5 {[%clk 0:02:21.4]} 39... f6 {[%clk 0:00:12.6]} 40. Qxf6+
{[%clk 0:02:16.7]} 40... Rf7 {[%clk 0:00:10.8]} 41. Qxd6+ {[%clk 0:02:13.3]} 1-0

[Event "Live Chess"]
[Site "Chess.com"]
[Date "2024.06.02"]
[Round "-"]
[White "Rusty_Bridges"]
[Black "santhoshrlokesh"]
[Result "1-0"]
[WhiteElo "1480"]
[BlackElo "1440"]
[TimeControl "300"]
[EndTime "8:28:29 PDT"]
[Termination "Rusty_Bridges won on time"]

1. e4 {[%clk 0:04:56.7]} 1... d5 {[%clk 0:04:59.5]} 2. exd5 {[%clk 0:04:55.3]}
2... e6 {[%clk 0:04:58.6]} 3. dxe6 {[%clk 0:04:52.7]} 3... Bxe6 {[%clk
0:04:58.1]} 4. Nf3 {[%clk 0:04:51.7]} 4... Bb4 {[%clk 0:04:57.2]} 5. a3 {[%clk
0:04:49.2]} 5... Ba5 {[%clk 0:04:55.3]} 6. b4 {[%clk 0:04:48]} 6... Bb6 {[%clk
0:04:54.4]} 7. Bb2 {[%clk 0:04:47.3]} 7... f6 {[%clk 0:04:51.6]} 8. d4 {[%clk
0:04:38.4]} 8... Nc6 {[%clk 0:04:45.9]} 9. c3 {[%clk 0:04:36.1]} 9... Nge7
{[%clk 0:04:37.1]} 10. Bb5 {[%clk 0:04:34.1]} 10... O-O {[%clk 0:04:34.9]} 11.
O-O {[%clk 0:04:31.4]} 11... a6 {[%clk 0:04:33.4]} 12. Bxc6 {[%clk 0:04:28.8]}
12... Nxc6 {[%clk 0:04:29.6]} 13. Re1 {[%clk 0:04:26.9]} 13... Bg4 {[%clk
0:04:24]} 14. Nbd2 {[%clk 0:04:24.1]} 14... Qd5 {[%clk 0:04:16.2]} 15. h3 {[%clk
0:04:15.5]} 15... Bh5 {[%clk 0:04:09.6]} 16. c4 {[%clk 0:04:11]} 16... Qd8
{[%clk 0:04:01]} 17. c5 {[%clk 0:04:09.6]} 17... Ba7 {[%clk 0:03:54]} 18. Qb3+
{[%clk 0:03:42.9]} 18... Kh8 {[%clk 0:03:49.8]} 19. Qd3 {[%clk 0:03:35.5]} 19...
b6 {[%clk 0:03:39.3]} 20. Qf5 {[%clk 0:03:25.5]} 20... Bg6 {[%clk 0:03:31.1]}
21. Qg4 {[%clk 0:03:22.3]} 21... bxc5 {[%clk 0:03:23.2]} 22. bxc5 {[%clk
0:03:13.7]} 22... Re8 {[%clk 0:03:09.8]} 23. Nh4 {[%clk 0:03:00.1]} 23... Bf7
{[%clk 0:02:57.1]} 24. Nf5 {[%clk 0:02:45.4]} 24... Bg6 {[%clk 0:02:53.3]} 25.
Nh4 {[%clk 0:02:41.6]} 25... Bf7 {[%clk 0:02:51.6]} 26. Nf5 {[%clk 0:02:32.5]}
26... Bg6 {[%clk 0:02:49.7]} 27. Nf3 {[%clk 0:02:27.1]} 27... Bxf5 {[%clk
0:02:37.8]} 28. Qxf5 {[%clk 0:02:25.3]} 28... a5 {[%clk 0:02:20]} 29. h4 {[%clk
0:02:23.7]} 29... h6 {[%clk 0:02:17.4]} 30. h5 {[%clk 0:02:20.6]} 30... a4
{[%clk 0:02:10.9]} 31. Rxe8+ {[%clk 0:02:15.6]} 31... Qxe8 {[%clk 0:02:09.2]}
32. Nh4 {[%clk 0:02:12.5]} 32... Qc8 {[%clk 0:01:37.9]} 33. Ng6+ {[%clk
0:02:08.8]} 33... Kg8 {[%clk 0:01:35.7]} 34. Qd5+ {[%clk 0:01:53.6]} 34... Kh7
{[%clk 0:01:28.4]} 35. Qxc6 {[%clk 0:01:51.6]} 35... Qf5 {[%clk 0:01:18.7]} 36.
Qf3 {[%clk 0:01:41.4]} 36... Qxf3 {[%clk 0:01:08.6]} 37. gxf3 {[%clk 0:01:39.4]}
37... c6 {[%clk 0:01:07.9]} 38. Re1 {[%clk 0:01:35.9]} 38... Bb8 {[%clk
0:00:54.1]} 39. Re6 {[%clk 0:01:32]} 39... Ra6 {[%clk 0:00:42.2]} 40. Re8 {[%clk
0:01:25.2]} 40... Ra8 {[%clk 0:00:34.8]} 41. Nf8+ {[%clk 0:01:23.3]} 41... Kg8
{[%clk 0:00:31.6]} 42. Nd7+ {[%clk 0:01:19.6]} 42... Kf7 {[%clk 0:00:28.2]} 43.
Rxb8 {[%clk 0:01:17]} 43... Ra7 {[%clk 0:00:22.2]} 44. Nb6 {[%clk 0:01:12.7]}
44... f5 {[%clk 0:00:18.8]} 45. Rd8 {[%clk 0:01:10]} 45... Kf6 {[%clk
0:00:10.2]} 46. d5+ {[%clk 0:01:04.8]} 46... Kg5 {[%clk 0:00:08.9]} 47. dxc6
{[%clk 0:01:03.3]} 47... Kxh5 {[%clk 0:00:07.2]} 48. Rd7 {[%clk 0:01:02.5]} 1-0

[Event "Live Chess"]
[Site "Chess.com"]
[Date "2024.06.02"]
[Round "-"]
[White "elephantgerrald"]
[Black "CarmelJane"]
[Result "0-1"]
[WhiteElo "871"]
[BlackElo "2043"]
[TimeControl "300"]
[EndTime "8:28:37 PDT"]
[Termination "CarmelJane won by checkmate"]

1. e4 {[%clk 0:04:58.2]} 1... g6 {[%clk 0:04:58.4]} 2. Nf3 {[%clk 0:04:56]} 2...
Bg7 {[%clk 0:04:57.9]} 3. d4 {[%clk 0:04:53.6]} 3... c5 {[%clk 0:04:57.4]} 4.
dxc5 {[%clk 0:04:47.3]} 4... Qa5+ {[%clk 0:04:55.1]} 5. Nc3 {[%clk 0:04:44.4]}
5... Qxc5 {[%clk 0:04:53.9]} 6. Bc4 {[%clk 0:04:36.1]} 6... Qxc4 {[%clk
0:04:51.8]} 7. Qd3 {[%clk 0:04:32]} 7... Bxc3+ {[%clk 0:04:48.4]} 8. Bd2 {[%clk
0:04:28.8]} 8... Bxd2+ {[%clk 0:04:46.7]} 9. Nxd2 {[%clk 0:04:27]} 9... Qxd3
{[%clk 0:04:45.5]} 10. cxd3 {[%clk 0:04:24.4]} 10... Nf6 {[%clk 0:04:44.3]} 11.
O-O {[%clk 0:04:23.2]} 11... Nc6 {[%clk 0:04:43.9]} 12. e5 {[%clk 0:04:22]}
12... Nxe5 {[%clk 0:04:42.5]} 13. f4 {[%clk 0:04:20.5]} 13... Nxd3 {[%clk
0:04:41.4]} 14. Nc4 {[%clk 0:04:15.5]} 14... O-O {[%clk 0:04:39.7]} 15. Ne5
{[%clk 0:04:13.4]} 15... Nxe5 {[%clk 0:04:37.7]} 16. fxe5 {[%clk 0:04:05.1]}
16... Nd5 {[%clk 0:04:36.4]} 17. Rad1 {[%clk 0:04:02.5]} 17... Nb6 {[%clk
0:04:35.2]} 18. a4 {[%clk 0:03:07]} 18... d6 {[%clk 0:04:26.2]} 19. exd6 {[%clk
0:03:03.7]} 19... exd6 {[%clk 0:04:26.1]} 20. Rxd6 {[%clk 0:02:45.1]} 20... Nxa4
{[%clk 0:04:24.3]} 21. b3 {[%clk 0:02:36.2]} 21... Nb6 {[%clk 0:04:17]} 22. Rd3
{[%clk 0:02:24]} 22... Bf5 {[%clk 0:04:12.1]} 23. Rd4 {[%clk 0:02:17.4]} 23...
Rad8 {[%clk 0:04:08.7]} 24. Rdf4 {[%clk 0:02:03.9]} 24... Nd5 {[%clk 0:04:03.4]}
25. Ra4 {[%clk 0:01:58]} 25... Ne3 {[%clk 0:04:00.6]} 26. Re1 {[%clk 0:01:49.3]}
26... Rd1 {[%clk 0:03:54.4]} 27. Kf2 {[%clk 0:01:29]} 27... Rxe1 {[%clk
0:03:52.8]} 28. Kxe1 {[%clk 0:01:26.8]} 28... Nc2+ {[%clk 0:03:52.7]} 29. Kd2
{[%clk 0:01:24]} 29... Rd8+ {[%clk 0:03:49.2]} 30. Kc3 {[%clk 0:01:21.8]} 30...
Ne3 {[%clk 0:03:45.7]} 31. Rxa7 {[%clk 0:01:18.8]} 31... b5 {[%clk 0:03:40.2]}
32. Ra2 {[%clk 0:01:11.5]} 32... Nd5+ {[%clk 0:03:35.9]} 33. Kd4 {[%clk
0:01:08.9]} 33... b4 {[%clk 0:03:33.7]} 34. Ke5 {[%clk 0:01:07.1]} 34... Nc3
{[%clk 0:03:32.7]} 35. Ra5 {[%clk 0:01:00.6]} 35... Kg7 {[%clk 0:03:29.5]} 36.
g4 {[%clk 0:00:39.8]} 36... f6+ {[%clk 0:03:26.6]} 37. Kf4 {[%clk 0:00:30.2]}
37... Rd4+ {[%clk 0:03:26]} 38. Kg3 {[%clk 0:00:26.8]} 38... Rxg4+ {[%clk
0:03:25.4]} 39. Kf2 {[%clk 0:00:23.6]} 39... Rf4+ {[%clk 0:03:23.8]} 40. Kg3
{[%clk 0:00:21]} 40... Rd4 {[%clk 0:03:22]} 41. Kf2 {[%clk 0:00:20]} 41... h5
{[%clk 0:03:19.4]} 42. Ra7+ {[%clk 0:00:18.2]} 42... Kh6 {[%clk 0:03:18.2]} 43.
Ra8 {[%clk 0:00:16.1]} 43... Kg5 {[%clk 0:03:17.2]} 44. Rh8 {[%clk 0:00:13.4]}
44... Rd2+ {[%clk 0:03:16.3]} 45. Kg3 {[%clk 0:00:13]} 45... Ne4+ {[%clk
0:03:13.8]} 46. Kf3 {[%clk 0:00:11.9]} 46... Rf2+ {[%clk 0:03:11.6]} 47. Ke3
{[%clk 0:00:10.7]} 47... Rxh2 {[%clk 0:03:11.5]} 48. Kd4 {[%clk 0:00:09.5]}
48... Rh3 {[%clk 0:03:11.4]} 49. Kd5 {[%clk 0:00:08.2]} 49... Rxb3 {[%clk
0:03:11.3]} 50. Kc6 {[%clk 0:00:07.4]} 50... Rc3+ {[%clk 0:03:11]} 51. Kb5
{[%clk 0:00:06.6]} 51... b3 {[%clk 0:03:10.9]} 52. Ka4 {[%clk 0:00:05.6]} 52...
b2 {[%clk 0:03:10.7]} 53. Re8 {[%clk 0:00:04.7]} 53... b1=Q {[%clk 0:03:09.9]}
54. Rxe4 {[%clk 0:00:03.6]} 54... Bxe4 {[%clk 0:03:07.1]} 55. Ka5 {[%clk
0:00:02.4]} 55... Ra3# {[%clk 0:03:06.6]} 0-1

[Event "Live Chess"]
[Site "Chess.com"]
[Date "2024.06.02"]
[Round "-"]
[White "Ginger_GM"]
[Black "Zhevzh1k7"]
[Result "1-0"]
[WhiteElo "2665"]
[BlackElo "1128"]
[TimeControl "300"]
[EndTime "8:28:52 PDT"]
[Termination "Ginger_GM won by checkmate"]

1. e4 {[%clk 0:04:58.3]} 1... c6 {[%clk 0:04:54.6]} 2. Bc4 {[%clk 0:04:56.7]}
2... d5 {[%clk 0:04:50.2]} 3. Bb3 {[%clk 0:04:55.7]} 3... dxe4 {[%clk 0:04:42]}
4. Qh5 {[%clk 0:04:54.3]} 4... e6 {[%clk 0:04:33.2]} 5. Nc3 {[%clk 0:04:52.1]}
5... Nd7 {[%clk 0:04:26.4]} 6. Nxe4 {[%clk 0:04:49.6]} 6... Ngf6 {[%clk
0:04:22.1]} 7. Qh4 {[%clk 0:04:46.9]} 7... Nxe4 {[%clk 0:04:17.5]} 8. Qxe4
{[%clk 0:04:46.8]} 8... Nf6 {[%clk 0:04:13.8]} 9. Qh4 {[%clk 0:04:43]} 9... Be7
{[%clk 0:04:08.5]} 10. Nf3 {[%clk 0:04:41.3]} 10... O-O {[%clk 0:04:02.3]} 11.
O-O {[%clk 0:04:39.7]} 11... Nd5 {[%clk 0:03:49.5]} 12. Qg3 {[%clk 0:04:38.3]}
12... Bd7 {[%clk 0:03:35.1]} 13. d4 {[%clk 0:04:35.8]} 13... c5 {[%clk
0:03:26.2]} 14. c4 {[%clk 0:04:29]} 14... Nb6 {[%clk 0:03:21.4]} 15. Rd1 {[%clk
0:04:19.7]} 15... cxd4 {[%clk 0:03:14.1]} 16. Rxd4 {[%clk 0:04:18]} 16... Bc5
{[%clk 0:03:07.6]} 17. Rh4 {[%clk 0:04:05.9]} 17... Qf6 {[%clk 0:02:43.2]} 18.
Bc2 {[%clk 0:03:54.4]} 18... h6 {[%clk 0:02:35.6]} 19. Rxh6 {[%clk 0:03:50.1]}
19... Nxc4 {[%clk 0:02:17.8]} 20. Rxf6 {[%clk 0:03:44.6]} 20... Bxf2+ {[%clk
0:02:12.5]} 21. Kxf2 {[%clk 0:03:42.2]} 21... g6 {[%clk 0:02:09.3]} 22. Rxg6+
{[%clk 0:03:39.3]} 22... fxg6 {[%clk 0:02:07.7]} 23. Qxg6+ {[%clk 0:03:39.2]}
23... Kh8 {[%clk 0:02:06.4]} 24. Qh7# {[%clk 0:03:39.1]} 1-0

[Event "Live Chess"]
[Site "Chess.com"]
[Date "2024.06.02"]
[Round "-"]
[White "PaulyD81"]
[Black "juniortay"]
[Result "0-1"]
[WhiteElo "979"]
[BlackElo "2257"]
[TimeControl "300"]
[EndTime "8:29:07 PDT"]
[Termination "juniortay won by checkmate"]

1. d4 {[%clk 0:04:56.7]} 1... Nf6 {[%clk 0:04:57.4]} 2. Bf4 {[%clk 0:04:55.9]}
2... d5 {[%clk 0:04:54.3]} 3. e3 {[%clk 0:04:50.7]} 3... c6 {[%clk 0:04:52.1]}
4. Nf3 {[%clk 0:04:43.8]} 4... Bf5 {[%clk 0:04:49.8]} 5. Nh4 {[%clk 0:04:30.5]}
5... e6 {[%clk 0:04:46.8]} 6. Nxf5 {[%clk 0:04:25.7]} 6... exf5 {[%clk
0:04:45.2]} 7. Nd2 {[%clk 0:04:25.3]} 7... Bd6 {[%clk 0:04:40.5]} 8. Bg3 {[%clk
0:04:20.7]} 8... O-O {[%clk 0:04:37]} 9. Bd3 {[%clk 0:04:19.9]} 9... g6 {[%clk
0:04:33.7]} 10. Nf3 {[%clk 0:04:02]} 10... Re8 {[%clk 0:04:30.5]} 11. Ne5 {[%clk
0:03:54.3]} 11... Ne4 {[%clk 0:04:23.4]} 12. O-O {[%clk 0:03:35.6]} 12... Nxg3
{[%clk 0:04:17.6]} 13. hxg3 {[%clk 0:03:28.3]} 13... Bxe5 {[%clk 0:04:16.3]} 14.
dxe5 {[%clk 0:03:17.5]} 14... Rxe5 {[%clk 0:04:14.6]} 15. f4 {[%clk 0:03:09.8]}
15... Rxe3 {[%clk 0:04:12.5]} 16. Re1 {[%clk 0:02:52.9]} 16... Rxg3 {[%clk
0:04:00.5]} 17. Kf2 {[%clk 0:02:51.6]} 17... Rg4 {[%clk 0:03:57.9]} 18. g3
{[%clk 0:02:07.3]} 18... Nd7 {[%clk 0:03:55]} 19. Be2 {[%clk 0:01:58.9]} 19...
Nf6 {[%clk 0:03:53.2]} 20. Bxg4 {[%clk 0:01:55.2]} 20... Nxg4+ {[%clk
0:03:51.6]} 21. Kg2 {[%clk 0:01:38.7]} 21... Qb6 {[%clk 0:03:45.5]} 22. Qd2
{[%clk 0:01:14.4]} 22... d4 {[%clk 0:03:29.2]} 23. c3 {[%clk 0:01:09.5]} 23...
c5 {[%clk 0:03:25.6]} 24. cxd4 {[%clk 0:00:58.6]} 24... cxd4 {[%clk 0:03:22.9]}
25. Re7 {[%clk 0:00:57.2]} 25... Qc6+ {[%clk 0:03:06.6]} 26. Kh3 {[%clk
0:00:45.3]} 26... Qf3 {[%clk 0:02:48.6]} 27. Rf1 {[%clk 0:00:36.3]} 27... Qd5
{[%clk 0:02:42.3]} 28. b3 {[%clk 0:00:31.4]} 28... Rd8 {[%clk 0:02:38.4]} 29.
Rfe1 {[%clk 0:00:26.3]} 29... Kg7 {[%clk 0:02:33.5]} 30. Qd3 {[%clk 0:00:15.9]}
30... Rc8 {[%clk 0:02:25]} 31. Re8 {[%clk 0:00:13.7]} 31... Rxe8 {[%clk
0:02:20.9]} 32. Rxe8 {[%clk 0:00:13.1]} 32... Qh1# {[%clk 0:02:20]} 0-1